Cogmind - Beta 16 @@@ ROGUE MODE // 2025.12.29 @ 22:31:35 Player: GermanMO Result: Destroyed by Y-54 Guardian with Flak Gun Performance ------------- Evolutions (4) 2000 Regions Visited (5) 1000 Robots Destroyed (7) 35 Value Destroyed (111) 111 Prototype IDs (17) 340 Alien Tech Used (0) 0 Bonus (800) 800 TOTAL SCORE: 4286 Bonus ------- Registered with UFD 300 Met Optimus in HQ 500 Cogmind --------- Core Integrity 0/850 Matter 268/300 Energy 99/100 System Corruption 0% Temperature Cool (12) Movement Core (100) Ox1 Location -6/Extension Parts ------- > --- POWER (2) -------- (None) > --- PROPULSION (6) --- (None) > --- UTILITY (5) ------ Visual Processing Unit Improved Signal Interpreter Advanced Melee Analysis Suite A0-MCA's Component Scanner > --- WEAPON (2) ------- Companion Sword > --- INVENTORY (5) ---- Structural Scanner Improved Sensor Array Rocket Launcher Peak State ------------ > --- POWER ------------ Nuclear Core > --- PROPULSION ------- Cesium-ion Thruster Cesium-ion Thruster > --- UTILITY ---------- Advanced Weight Redist. System Visual Processing Unit Improved Terrain Scanner Improved Terrain Scan Processor A0-MCA's Component Scanner > --- WEAPON ----------- Companion Sword > --- INVENTORY -------- Compact Wheel Structural Scanner Seismic Detector Advanced Melee Analysis Suite Rocket Launcher [Rating: 36] Favorites ----------- Power Ion Engine Engine Ion Engine Power Core Nuclear Core Propulsion Compact Wheel Wheel Compact Wheel Flight Unit Cesium-ion Thruster Utility Large Storage Unit Device Improved Terrain Scanner Storage Large Storage Unit Processor A0-MCA's Component Scanner Weapon Assault Rifle Energy Gun Improved Medium Laser Ballistic Gun Assault Rifle Special Weapon Mining Laser Impact Weapon Flail Slashing Weapon Companion Sword Build | -11 -10 -10 -8 -6 -6 ------- Run | Yrd Mat Sub Scr Fac Ext Slots Evolved 8 | . . . . 8 . Power 1 | . . . . 1 . Propulsion 4 | . . . . 4 . Utility 3 | . . . . 3 . Weapon . | . . . . . . Parts Attached 22 | 6 2 1 4 6 3 Power 2 | 1 . . 1 . . Engine 1 | 1 . . . . . Core 1 | . . . 1 . . Reactor . | . . . . . . Propulsion 4 | 2 . . . 2 . Treads . | . . . . . . Leg . | . . . . . . Wheel 2 | 2 . . . . . Hover . | . . . . . . Flight 2 | . . . . 2 . Utility 11 | 2 1 . 1 4 3 Device 4 | 1 . . . 2 1 Storage 2 | 1 1 . . . . Processor 5 | . . . 1 2 2 Hackware . | . . . . . . Protection . | . . . . . . Artifact . | . . . . . . Weapon 5 | 1 1 1 2 . . Energy Gun 1 | . 1 . . . . Energy Cannon . | . . . . . . Ballistic Gun 1 | 1 . . . . . Ballistic Cannon . | . . . . . . Launcher . | . . . . . . Special Weapon 1 | . . 1 . . . Impact Weapon 1 | . . . 1 . . Slashing Weapon 1 | . . . 1 . . Piercing Weapon . | . . . . . . Special Melee Weapon . | . . . . . . Unidentified Prototypes 2 | . 1 . 1 . . Parts Lost 5 | . . . . 5 . Power 1 | . . . . 1 . Propulsion 2 | . . . . 2 . Utility 2 | . . . . 2 . Weapon . | . . . . . . Highest Loss Streak 5 | . . . . 5 . To Critical Strikes . | . . . . . . Average Backups 6 | 1 4 4 8 6 3 Power . | . . . . . . Propulsion 1 | . 1 1 2 1 . Utility 2 | . 1 1 4 4 2 Weapon 1 | . 2 2 2 1 1 Tool/Special . | . . . . . . Unused Backups 4 | . . . . 3 1 Power . | . . . . . . Propulsion 1 | . . . . 1 . Utility 1 | . . . . 1 . Weapon 2 | . . . . 1 1 Tool/Special . | . . . . . . Average Slot Usage (%) 82 | . 85 90 91 51 33 Engine 6 | . 14 14 4 . . Core 5 | . . . 9 5 . Wheel 23 | . 28 28 28 4 . Device 8 | . 14 14 7 7 . Storage 11 | . 14 14 14 1 . Processor 7 | . . . 6 16 25 Ballistic Gun 7 | . 14 14 5 . . Impact Weapon 2 | . . . 5 . . Slashing Weapon 5 | . . . 8 6 6 Peak Build Rating 36 | 8 11 9 23 36 26 Average Rating 15 | 5 8 8 17 31 24 On Entrance 11 | . 8 8 9 23 21 Avg Prop Armor Cover (%) . | . . . . . . Naked Turns . | . . . . . . Heaviest Build 32 | 13 28 29 32 31 4 Greatest Support 32 | 32 32 32 32 32 3 Greatest Overweight (x) 3 | . . . . 3 1 Average Overweight (x) . | . . . . . 1 Largest Inventory Capacity 15 | 8 15 15 15 15 5 Average Capacity 12 | 7 10 15 15 7 5 Most Carried 12 | 3 5 5 12 11 4 Average Carried 6 | 1 4 4 8 6 3 Final Capacity 15 | 8 15 15 15 5 5 Final Carried 11 | 3 5 4 11 5 3 Class Distribution -------------------- 94% | Mutant 5% | Derelict-Scout Dominant Class ---------------- Mutant | -10/Materials Mutant | -10/Subcaves Mutant | -8/Scraptown Derelict-Scout | -6/Factory Mutant | -6/Extension Resources | -11 -10 -10 -8 -6 -6 ----------- Run | Yrd Mat Sub Scr Fac Ext Matter Collected 421 | 308 . . 50 58 5 Remotely . | . . . . . . Salvage Created 267 | 209 . . . 58 . Parts 19 | 18 . . . 1 . Haulers Intercepted . | . . . . . . Recyclers Shooed . | . . . . . . Parts Field Recycled . | . . . . . . Retrieved Matter . | . . . . . . Parts Self-Destructed 1 | . . 1 . . . Prevented . | . . . . . . Parts Restored . | . . . . . . Kills | -11 -10 -10 -8 -6 -6 ------- Run | Yrd Mat Sub Scr Fac Ext Combat Hostiles Destroyed 1 | . . . . 1 . Melee 1 | . . . . 1 . Classes Destroyed 4 | 3 . . . 1 . Worker 1 | 1 . . . . . Tunneler 4 | 4 . . . . . Recycler 1 | 1 . . . . . Hunter 1 | . . . . 1 . Best Kill Streak 2 | 2 . . . 1 . Combat Bots Only 1 | . . . . 1 . Max Kills in Single Turn 1 | 1 . . . 1 . Gunslinging . | . . . . . . Exploded . | . . . . . . Melee 1 | . . . . 1 . Uniques/NPCs Destroyed . | . . . . . . Combat | -11 -10 -10 -8 -6 -6 -------- Run | Yrd Mat Sub Scr Fac Ext Hostile Shots Fired 128 | . . . . 42 86 Missed 46 | . . . . 11 35 Hits 82 | . . . . 31 51 Projectile 82 | . . . . 31 51 Damage Taken 1200 | . . . . 406 794 Core 850 | . . . . 158 692 Absorbed by Shields . | . . . . . . Core Remaining (%) 100 | 100 . . 100 . . Volleys Fired 22 | 16 . 6 . . . Largest 1 | 1 . 1 . . . Hottest 100 | 20 . 100 . . . Shots Fired 22 | 16 . 6 . . . Gun 16 | 16 . . . . . Cannon . | . . . . . . Launcher . | . . . . . . Special 6 | . . 6 . . . Kinetic 16 | 16 . . . . . Thermal 6 | . . 6 . . . Explosive . | . . . . . . Electromagnetic . | . . . . . . Robot Hit Streak 7 | 7 . . . . . Robot Miss Streak 1 | 1 . . . . . Penetration Max . | . . . . . . Secondary Targets . | . . . . . . Shots Hit Robots 15 | 13 . . . 2 . Core Hits 8 | 7 . . . 1 . Critical Kills . | . . . . . . Critical Parts Destroyed . | . . . . . . Critical Strikes . | . . . . . . Melee Attacks 13 | . . . . 13 . Impact . | . . . . . . Slashing 13 | . . . . 13 . Piercing . | . . . . . . Sneak Attacks . | . . . . . . Combat Hostiles . | . . . . . . Follow-up Attacks . | . . . . . . Damage Inflicted 261 | 165 . . . 96 . Guns 165 | 165 . . . . . Cannons . | . . . . . . Explosions . | . . . . . . Melee 96 | . . . . 96 . Ramming . | . . . . . . Kinetic 165 | 165 . . . . . Thermal . | . . . . . . Explosive . | . . . . . . Electromagnetic . | . . . . . . Impact . | . . . . . . Slashing 96 | . . . . 96 . Piercing . | . . . . . . Highest Corruption . | . . . . . . Average Corruption . | . . . . . . Corruption Purged . | . . . . . . Corruption Blocked . | . . . . . . Overload Shots . | . . . . . . Overflow Damage . | . . . . . . Projectiles . | . . . . . . Explosions . | . . . . . . Melee . | . . . . . . Knockbacks . | . . . . . . Impact . | . . . . . . Kinetic . | . . . . . . Secondary . | . . . . . . Self-Inflicted Damage . | . . . . . . Shots . | . . . . . . Rammed . | . . . . . . Targets Rammed . | . . . . . . Kicked . | . . . . . . Crushed . | . . . . . . Highest Temperature . | . . . . . . Average Temperature . | . . . . . . Received Heat Transfer 156 | . . . . 6 150 Siege Activations . | . . . . . . Martial Activations . | . . . . . . Shielding Activations . | . . . . . . Robots Disrupted . | . . . . . . Combat Hostiles . | . . . . . . Robots Corrupted . | . . . . . . Combat Hostiles . | . . . . . . Parts Fried . | . . . . . . Impact Corruptions . | . . . . . . Robots Melted . | . . . . . . Combat Hostiles . | . . . . . . Parts Melted . | . . . . . . Heat Transferred . | . . . . . . Parts Sabotaged . | . . . . . . Parts Stolen . | . . . . . . Parts Stripped . | . . . . . . Power Chain Reactions . | . . . . . . Alert | -11 -10 -10 -8 -6 -6 ------- Run | Yrd Mat Sub Scr Fac Ext Maximum Alert Level . | . . . . . . Low Security (%) 100 | 100 100 . . 100 100 Level 1 . | . . . . . . Level 2 . | . . . . . . Level 3 . | . . . . . . Level 4 . | . . . . . . Level 5 . | . . . . . . High Security . | . . . . . . Max Security . | . . . . . . Peak Influence 22 | 10 3 . . 22 5 Initial 3 | . 3 . . . . Average 1 | 1 . . . 2 . Influence Increases 97 | 30 . . . 52 15 Destroy 0b10 Robot/C 20 | . . . . 20 . Destroy 0b10 Robot/NC 30 | 30 . . . . . Destroy Leader 10 | . . . . 10 . Disable Machine 15 | . . . . 15 . Destroy Structure 7 | . . . . 7 . Lose Combat Pursuer 15 | . . . . . 15 Influence Decreases 97 | 25 5 . . 52 15 Entered New Map 2 | . 2 . . . . Time Decay 73 | 25 3 . . 30 15 Lost Part 22 | . . . . 22 . Squads Dispatched 1 | . . . . . 1 Investigation 1 | . . . . . 1 Extermination . | . . . . . . Reinforcement . | . . . . . . Assault . | . . . . . . Garrison . | . . . . . . Intercept . | . . . . . . Searches Triggered . | . . . . . . Construction Impeded . | . . . . . . Haulers Reinforced . | . . . . . . Active Scanning Responses . | . . . . . . Cargo Convoy Interrupts . | . . . . . . Stealth | -11 -10 -10 -8 -6 -6 --------- Run | Yrd Mat Sub Scr Fac Ext Distress Signals 2 | . . . . 1 1 Communications Jammed . | . . . . . . Distress Signals . | . . . . . . Times Spotted 15 | . . . . 6 9 Peak Tracking Total 8 | . . . . 5 8 Tactical Retreats 1 | . . . . . 1 Traps | -11 -10 -10 -8 -6 -6 ------- Run | Yrd Mat Sub Scr Fac Ext Traps Triggered . | . . . . . . Indirectly . | . . . . . . Trap Hack Attempts . | . . . . . . Triggered . | . . . . . . Disarmed . | . . . . . . Reprogrammed . | . . . . . . Reused . | . . . . . . Traps Extracted . | . . . . . . Installed . | . . . . . . Triggered . | . . . . . . Machines | -11 -10 -10 -8 -6 -6 ---------- Run | Yrd Mat Sub Scr Fac Ext Machines Disabled 1 | . . . . 1 . Max in Single Turn 1 | . . . . 1 . Machines Repaired . | . . . . . . Machines Dismantled . | . . . . . . Machines Sabotaged . | . . . . . . Overloaded Fab Kills . | . . . . . . Hacking | -11 -10 -10 -8 -6 -6 --------- Run | Yrd Mat Sub Scr Fac Ext Machines Accessed 9 | . 1 . 6 1 1 Terminals 2 | . 1 . . . 1 Fabricators . | . . . . . . Repair Stations . | . . . . . . Recycling Units . | . . . . . . Scanalyzers 1 | . . . . 1 . Garrison Access . | . . . . . . Total Hacks 40 | . 1 . 33 3 3 Successful 35 | . 1 . 33 1 . Failed 5 | . . . . 2 3 Catastrophic . | . . . . . . Database Lockouts . | . . . . . . Manual 2 | . 2 . . . . Terminals 4 | . 1 . . . 3 Fabricators . | . . . . . . Repair Stations . | . . . . . . Recycling Units . | . . . . . . Scanalyzers 3 | . . . . 3 . Garrison Access . | . . . . . . Terminal Hacks 33 | . . . 33 . . Record 23 | . . . 23 . . Robot Analysis 8 | . . . 8 . . Open Door 1 | . . . 1 . . Proto ID Catalog 1 | . . . 1 . . Fabricator Hacks . | . . . . . . Repair Station Hacks . | . . . . . . Recycling Unit Hacks . | . . . . . . Scanalyzer 1 | . . . . 1 . Retrieve Study 1 | . . . . 1 . Garrison Access Hacks . | . . . . . . Unauthorized Hacks 1 | . 1 . . . . Terminals 1 | . 1 . . . . Botnet 1 | . 1 . . . . Fabricators . | . . . . . . Repair Stations . | . . . . . . Recycling Units . | . . . . . . Scanalyzers . | . . . . . . Garrison Access . | . . . . . . Data Cores Recovered . | . . . . . . Used . | . . . . . . Hacking Detections 2 | . 1 . . . 1 Full Trace Events 1 | . . . . . 1 Feedback Events . | . . . . . . Feedback Blocked . | . . . . . . Robot Schematics Acquired . | . . . . . . Robots Built . | . . . . . . Authchips . | . . . . . . Time . | . . . . . . Total Robot Build Rating . | . . . . . . Part Schematics Acquired . | . . . . . . Parts Built . | . . . . . . Authchips . | . . . . . . Time . | . . . . . . Total Part Build Rating . | . . . . . . Part Studies Acquired 1 | . . . . 1 . Parts Repaired . | . . . . . . Time . | . . . . . . Parts Recycled . | . . . . . . Recycled Matter . | . . . . . . Retrieved Matter . | . . . . . . Retrieved Components . | . . . . . . Parts Scanalyzed . | . . . . . . Part Schematics Acquired . | . . . . . . Parts Damaged . | . . . . . . Bothacking | -11 -10 -10 -8 -6 -6 ------------ Run | Yrd Mat Sub Scr Fac Ext Used RIF Installer . | . . . . . . Robots Hacked . | . . . . . . Non-combat . | . . . . . . Combat . | . . . . . . Robot Hacks Applied . | . . . . . . Relay Couplers Released . | . . . . . . Fabnet Peak Effective % . | . . . . . . Robots Rewired . | . . . . . . Allies Hacked . | . . . . . . Hacks Repelled . | . . . . . . Allies | -11 -10 -10 -8 -6 -6 -------- Run | Yrd Mat Sub Scr Fac Ext Total Allies . | . . . . . . Largest Group . | . . . . . . Highest-Rated Group . | . . . . . . Highest-Rated Ally . | . . . . . . Total Orders . | . . . . . . Ally Attacks . | . . . . . . Total Damage . | . . . . . . Kills . | . . . . . . Allies Corrupted . | . . . . . . Allies Melted . | . . . . . . Intel | -11 -10 -10 -8 -6 -6 ------- Run | Yrd Mat Sub Scr Fac Ext Active Infowar (turns) 1124 | 56 291 119 445 98 115 Optics 211 | . . . . 96 115 Sensors 2 | . . . . . 2 Terrain 996 | 56 291 119 445 85 . Structural 2 | . . . . 2 . Robot Analysis Total 8 | . . . 8 . . Derelict Logs Recovered 1 | . . 1 . . . Drone Launches . | . . . . . . Drone Recoveries . | . . . . . . Exploration | -11 -10 -10 -8 -6 -6 ------------- Run | Yrd Mat Sub Scr Fac Ext Turns Passed 1657 | 155 291 119 854 123 115 Spaces Moved 1437 | 98 210 75 779 164 111 Core 127 | 7 . . . 9 111 Treads . | . . . . . . Legs . | . . . . . . Wheels 1178 | 91 210 75 779 23 . Hover . | . . . . . . Flight 132 | . . . . 132 . Fastest Speed 32 | 50 100 100 100 32 100 Average Speed 93 | 96 100 100 100 47 100 Slowest Speed 200 | 100 100 100 100 200 100 Overloaded Moves . | . . . . . . Propulsion Burnouts . | . . . . . . Robots Hopped . | . . . . . . Potential Cave-ins . | . . . . . . Cave-ins Triggered . | . . . . . . Exploration Rate (%) 21 | 4 40 8 45 7 26 Regions Visited 5 Branch Regions 3 Pre-discovered Areas 1 | . . 1 . . . Known Exits Taken . | . . . . . . Unknown Exits Taken 5 | 1 1 1 1 1 . Scrap Searched 4 | . . . 4 . . Spaces Dug 7 | . . . . 7 . Terrain Destroyed 7 | . . . . 7 . Melee 7 | . . . . 7 . Projectile . | . . . . . . AOE . | . . . . . . Terrain Rammed . | . . . . . . Walls Destroyed . | . . . . . . Machines Disabled . | . . . . . . Actions | -11 -10 -10 -8 -6 -6 --------- Run | Yrd Mat Sub Scr Fac Ext Total 1700 | 142 291 101 856 194 116 Wait 167 | 14 75 20 58 . . Move 1432 | 97 209 74 778 163 111 Hop . | . . . . . . Pick Up 21 | 9 2 . 7 3 . Fast Attach 5 | . 2 . 3 . . Attach 18 | 6 . 1 1 7 3 Detach 10 | . 1 . 5 2 2 Swap . | . . . . . . Drop 12 | . 2 . 4 6 . Fire 22 | 16 . 6 . . . Melee 13 | . . . . 13 . Ram . | . . . . . . Kick . | . . . . . . Crush . | . . . . . . Escape Stasis . | . . . . . . Rewire . | . . . . . . Trap . | . . . . . . Miscellaneous . | . . . . . . Route ------- -11/Scrapyard -10/Materials (discovered 2 exits: [*Mat] / [*Sub]) -10/Subcaves -8/Scraptown -6/Factory -6/Extension History --------- Turn | Location | Event 5 | -11/Scrapyard | Discovered new exit (range 16) 156 | -11/Scrapyard | Entered Materials 317 | -10/Materials | Discovered new exit (range 9) 320 | -10/Materials | Build established: Mutant 441 | -10/Materials | Discovered new exit (range 6) 447 | -10/Materials | Entered Subcaves 448 | -10/Subcaves | Approached by a straggling Scientist 501 | -10/Subcaves | Shifting Twisted Machinery released Battle Cannon 508 | -10/Subcaves | Learned location of Zion (-6) 545 | -10/Subcaves | Shifting Twisted Machinery released Flamer 566 | -10/Subcaves | Entered Scraptown 691 | -8/Scraptown | Visited UFD Registry 691 | -8/Scraptown | Registered with UFD as "Gunshaft" 715 | -8/Scraptown | Visited Science Guys 767 | -8/Scraptown | Visited A0-MCA Data Center 773 | -8/Scraptown | Given an A- rating by A0-MCA 777 | -8/Scraptown | Found A0-MCA's Component Scanner 800 | -8/Scraptown | Visited Scrapoid Pod Storage 818 | -8/Scraptown | Visited DA-N13 Charitable Foundation 833 | -8/Scraptown | Found DCF Scrap (27 items) 894 | -8/Scraptown | Visited Sword Containment 909 | -8/Scraptown | Found Prototype Slashing Weapon 909 | -8/Scraptown | Identified Companion Sword 939 | -8/Scraptown | Visited Junk Repository 967 | -8/Scraptown | Visited Scrap Suit Storage 1000 | -8/Scraptown | Visited Curators Association 1040 | -8/Scraptown | Visited Abandonware Association 1064 | -8/Scraptown | Learned abandonware demo "ERRANTS.EXE" 1064 | -8/Scraptown | Learned abandonware demo "MELTYB.EXE" 1088 | -8/Scraptown | Visited Analyses Database 1178 | -8/Scraptown | Discovered new exit (range 3) 1280 | -8/Scraptown | Met Optimus 1280 | -8/Scraptown | Accepted into 0bPrime 1420 | -8/Scraptown | Entered Factory 1420 | -6/Factory | Evolved 8 slots: Power x1, Propulsion x4, Utility x3 1519 | -6/Factory | Discovered new exit (range 12) 1543 | -6/Factory | Entered Extension 1569 | -6/Extension | Lost 5 parts (1p2n2u) 1635 | -6/Extension | Spotted B-75 Beast 1640 | -6/Extension | Spotted B-75 Beast 1644 | -6/Extension | Core integrity fell below 50% 1653 | -6/Extension | Core integrity fell below 20% 1658 | -6/Extension | Destroyed by Y-54 Guardian with Flak Gun Last Messages --------------- 01542_ Slug penetrates Blast Doors. 01542_ M-28 Smith repairs H-66 Slayer Lgt. Fission Core. LOCATION=UNKNOWN GOAL=ESCAPE 01546_ Discarded Imp. Terrain Scan Processor. 01554_ W-25 Informer sends out distress signal. 01634_ C-30 ARC bursts open, deploying its payload. 01634_ G-67 Veteran unfolds itself. 01634_ G-50 Soldier unfolds itself. 01643_ Knocked back. 01648_ K-01 Serf destroyed. 01654_ Connecting with Door Terminal... 01654_ Current location identified: Extension 01654_ ALERT: Suspicious activity at Terminal E001. Dispatching Investigation squad. 01654_ Acquired 5 matter. 01656_ U-05 Engineer builds a Wall. 01657_ U-05 Engineer destroyed. Map ----- +----------------------------------------------------+ | ?????????????????????????????????????????????????? | | ?????????????????????????????????????????????????? | | ?????????????????????????????????????????????????? | | ?????????????????????????????????????????????????? | | ?????????????????????????????????????????????????? | | ?????????????????????????????????????????????????? | | ?????????????????????????????????????????????????? | | ?????????????????????????????????????????????????? | | ?????????????????????????????????????????????????? | | ???????????????????#?????????????????????????????? | | ?????????????????? #?????????????????????????????? | | ?????????????????? #?????????????????????????????? | | ?????????????????# #?###?##?? #??????????????????? | | ???????????????### ### ## ### ###????????????????? | | ???????????????#"" "" "" ""#????????????????? | | ???????????????# "u" " " #????????????????? | | ???????????????# #????????????????? | | ???????????????# #????????????????? | | ################ #########????????? | | % Y Y ????????? | | ????????? | | gg R ???????? | | gt % * ????????? | | uRR%=k k !%| u????????????? | | ################u ! #????????????????? | | ??????????????## BB @ #????????????????? | | ??????????????## BBBB #????????????????? | | ???????????????# BB #????????????????? | | ???????????????# #????????????????? | | ???????????????#;;###T#"""#######????????????????? | | ???????????????#????###??????????????????????????? | | ?????????????????????????????????????????????????? | | | | | | | | | | | | | | | | | | | | | | | | | | | | | | | | | | | | | +----------------------------------------------------+ Best States ------------- Heat Dissipation 37 Energy Generation 14 Energy Capacity 250 Matter Stores 300 Matter Capacity 300 Sight Range 18 Terrain Scan Range 16 Terrain Scan Density 110 Additional Mass Support 9 Evasion (%) 63 Melee Accuracy 8 Item Schematics ----------------- None Robot Schematics ------------------ None Fabricated ------------ Nothing Repaired ---------- Nothing Studied --------- Cesium-ion Thruster | -6/Factory | Hacked Alien Tech Used ----------------- None Achievements -------------- None Challenges ------------ None Game ------ Seed ThermoelectricArmorLegs Manual? 0 Play Time 00:44:51 Cumulative 27.1 hours Start 2025.12.25 @ 01:28:22 End 2025.12.29 @ 22:31:35 Sessions 2 Manual Loads 0 Difficulty Rogue Special Mode None Game No. 36 Rogue 17 Adventurer 0 Explorer 19 Win Type - Total 0 Types 0/0/0/0/0/0/0/0/0/0 Lore% 22 Gallery% 24 Achievement% 20 Wizard Run 0 Options --------- Layout 1 ASCII 0 Keyboard 1 Movement Arrows Keybinds 0 Fullscreen 1 Font 24/Smallcaps Map View 50x35 Zoom Use 0% Tactical HUD 1 Map Filters NONE Filters NONE Steam 1 RUN: 26d21127-9388-4b98-ba43-8df7a2124ab0